[Event "TUR-ch Veterans 2020"]
[Site "Antalya-Belek"]
[Date "2020.01.19"]
[Round "1"]
[White "Savas, Kemal"]
[Black "Muratoglu, Salih"]
[Result "0-1"]
[ECO "B00"]
[WhiteElo "1312"]
[BlackElo "1967"]
[Annotator "NA"]
[PlyCount "112"]
[EventDate "2020.01.19"]
[EventCountry "TUR"]
[SourceTitle "playchess.com"]
[Source "ChessBase"]
[SourceQuality "1"]
[TimeControl "5400+30"]

1. e4 {[%emt 0:00:30]} b6 {[%emt 0:00:30]} 2. Bc4 {[%emt 0:01:30]} Bb7 {[%emt 0:00:30]} 3. d3 {[%emt 0:00:30]} (3. Nc3 e6 4. d3 Bb4 5. Qg4 Bxc3+ 6. bxc3 Qf6 7. Ne2 d5 8. Bg5 Qg6 9. Nf4 f5 10. Qh4 Qf7 11. exd5 exd5 {1-0 (26) Gunina,V (2509)-Gaprindashvili,N (2275) Monaco 2019}) 3... e6 {[%emt 0:00:30]} 4. Nf3 {[%emt 0:00:30]} Nf6 {[%emt 0:01:30]} 5. O-O {[%emt 0:02:30]} Be7 {[%emt 0:01:30]} 6. Re1 {[%emt 0:00:30] B00: Queen's Fianchetto Defence, Nimzowitsch Defence} d6 {[%emt 0:01:30]} 7. Nbd2 $146 {[%emt 0:01:30]} ({Predecessor:} 7. Nc3 O-O 8. Nd4 c5 9. Nde2 d5 10. exd5 exd5 {1-0 (27) Cemborain Oricain,A (1895)-Otazu Ojer,J (1975) Spain 1999}) 7... Nbd7 {[%emt 0:00:30]} 8. d4 {[%emt 0:06:30]} e5 {[%emt 0:01:30]} 9. c3 {[%emt 0:00:30]} c5 {[%emt 0:01:30]} 10. Qb3 {[%emt 0:13:30]} O-O {[%emt 0:00:30]} 11. Ng5 {[%emt 0:04:30]} Qe8 {[%emt 0:00:30]} 12. d5 {[%emt 0:05:30]} a6 {[%emt 0:03:30]} 13. a4 {[%emt 0:03:30]} h6 {[%emt 0:04:30]} 14. Ngf3 {[%emt 0:00:30]} Nh5 {[%emt 0:01:30]} 15. Nf1 {[%emt 0:00:30]} f5 {[%emt 0:01:30]} 16. exf5 {[%emt 0:02:30]} Rxf5 {[%emt 0:00:00]} 17. Bd3 {[%emt 0:02:30]} Rf8 {[%emt 0:01:00]} 18. c4 {[%emt 0:00:30]} Nf4 {[%emt 0:00:30]} 19. Bxf4 {[%emt 0:00:00]} Rxf4 {[%emt 0:00:30]} 20. Qc2 {[%emt 0:01:00]} Qf8 {[%emt 0:01:30]} 21. Bh7+ {[%emt 0:04:30]} Kh8 {[%emt 0:00:30]} 22. Ra3 {[%emt 0:00:30]} g5 {[%emt 0:02:30]} 23. Re4 {[%emt 0:02:30]} Rf6 {[%emt 0:02:30]} 24. Re2 {[%emt 0:05:30]} b5 {[%emt 0:01:30]} 25. Rb3 {[%emt 0:02:30]} b4 {[%emt 0:00:30]} 26. Ng3 {[%emt 0:01:30]} Qf7 {[%emt 0:01:30]} 27. Be4 {[%emt 0:00:30]} Rf8 {[%emt 0:01:30]} 28. h3 {[%emt 0:02:30]} Rf4 {[%emt 0:00:30]} 29. Nh2 {[%emt 0:01:30]} Nb6 {[%emt 0:01:30]} 30. Rbe3 {[%emt 0:02:30]} h5 {[%emt 0:02:30]} 31. b3 {[%emt 0:04:30]} Kg7 {[%emt 0:01:30]} 32. Rf3 {[%emt 0:03:30]} Bc8 {[%emt 0:00:30]} 33. Rxf4 {[%emt 0:00:30]} exf4 {[%emt 0:00:30]} 34. Nf5+ $14 {[%emt 0:05:30]} Bxf5 {[%emt 0:05:30]} 35. Bxf5 {[%emt 0:00:30]} Bf6 {[%emt 0:01:30]} 36. Re6 {[%emt 0:01:37]} Nc8 {[%emt 0:04:30]} 37. Nf3 {[%emt 0:00:28]} Ne7 {[%emt 0:01:30]} 38. Rxd6 {[%emt 0:03:22]} Bc3 {[%emt 0:06:30]} 39. Be6 {[%emt 0:00:30]} Qf6 {[%emt 0:00:30]} 40. Rxa6 {[%emt 0:00:30]} g4 {[%emt 0:00:30]} 41. hxg4 {[%emt 0:00:30]} hxg4 {[%emt 0:00:30]} 42. Nd2 {[%emt 0:00:30]} Bxd2 {[%emt 0:00:30]} 43. Qd1 {[%emt 0:00:30]} g3 {[%emt 0:00:30]} 44. Qg4+ {[%emt 0:00:30]} Qg6 {[%emt 0:00:30]} 45. Qxg6+ {[%emt 0:00:30]} Nxg6 {[%emt 0:03:30]} 46. d6 {[%emt 0:11:50]} Ne5 {[%emt 0:01:30]} 47. d7 {[%emt 0:00:39]} Bc3 {[%emt 0:01:30]} 48. Rd6 {[%emt 0:00:43]} Rd8 {[%emt 0:00:30]} 49. a5 {[%emt 0:00:55]} Kf8 {[%emt 0:00:30]} 50. a6 {[%emt 0:00:17]} Ke7 {[%emt 0:00:30]} 51. Rb6 {[%emt 0:02:17]} Nxd7 {[%emt 0:00:30]} 52. Bxd7 {[%emt 0:00:33]} Rxd7 {[%emt 0:00:30]} 53. Kf1 {[%emt 0:00:27]} Rd1+ {[%emt 0:00:30]} 54. Ke2 {[%emt 0:00:29]} Rd2+ {[%emt 0:00:00]} 55. Kf1 {[%emt 0:00:00]} Rxf2+ {[%emt 0:00:00]} 56. Kg1 {[%emt 0:00:00]} Re2 {[%emt 0:00:00]} 0-1

[Event "TUR-ch Veterans 2020"]
[Site "Antalya-Belek"]
[Date "2020.01.19"]
[Round "1"]
[White "Dumludas, Cahit"]
[Black "Guner, Bulent"]
[Result "0-1"]
[ECO "C46"]
[WhiteElo "1304"]
[BlackElo "1964"]
[Annotator "NA"]
[PlyCount "46"]
[EventDate "2020.01.19"]
[EventCountry "TUR"]
[SourceTitle "playchess.com"]
[Source "ChessBase"]
[SourceQuality "1"]
[TimeControl "5400+30"]

1. e4 {[%emt 0:00:00]} e5 {[%emt 0:01:30]} 2. Nf3 {[%emt 0:01:00]} Nc6 {[%emt 0:00:00]} 3. Nc3 {[%emt 0:00:00]} g6 {[%emt 0:01:00]} 4. Bc4 {[%emt 0:00:00]} Bg7 {[%emt 0:00:30]} 5. d3 {[%emt 0:00:30]} Nge7 {[%emt 0:02:30]} 6. h3 {[%emt 0:01:30]} d6 {[%emt 0:04:30]} 7. Bd2 {[%emt 0:00:30]} h6 {[%emt 0:01:30]} 8. a3 {[%emt 0:00:30]} Be6 {[%emt 0:01:30]} 9. Bxe6 {[%emt 0:02:30]} fxe6 {[%emt 0:00:00]} 10. O-O {[%emt 0:00:30]} Qd7 {[%emt 0:01:00]} 11. Ne2 {[%emt 0:00:30]} O-O-O {[%emt 0:01:30]} 12. c3 {[%emt 0:00:30]} g5 {[%emt 0:02:30]} 13. Nh2 {[%emt 0:00:00]} Ng6 {[%emt 0:01:30]} 14. Ng3 {[%emt 0:01:00]} Rdf8 {[%emt 0:12:30]} 15. Nh5 {[%emt 0:00:30]} Nf4 {[%emt 0:01:30]} 16. Be3 {[%emt 0:02:30]} Qf7 {[%emt 0:02:30]} 17. Nxg7 {[%emt 0:02:30]} Qxg7 {[%emt 0:00:30]} 18. Bxf4 {[%emt 0:00:00]} Rxf4 {[%emt 0:02:30]} 19. g3 {[%emt 0:00:00]} Rf7 {[%emt 0:01:30]} 20. Qg4 {[%emt 0:01:30]} Rf6 {[%emt 0:03:30]} 21. f4 {[%emt 0:04:30]} exf4 {[%emt 0:01:30]} 22. gxf4 {[%emt 0:00:30]} h5 {[%emt 0:00:30]} 23. Qxg5 {[%emt 0:01:30]} Rg6 {[%emt 0:00:30]} 0-1

[Event "TUR-ch Veterans 2020"]
[Site "Antalya-Belek"]
[Date "2020.01.19"]
[Round "1"]
[White "Yilmaz, Huseyin"]
[Black "Cicek, Cemil"]
[Result "0-1"]
[ECO "D30"]
[WhiteElo "1280"]
[BlackElo "1940"]
[Annotator "NA"]
[PlyCount "60"]
[EventDate "2020.01.19"]
[EventCountry "TUR"]
[SourceTitle "playchess.com"]
[Source "ChessBase"]
[SourceQuality "1"]
[TimeControl "5400+30"]

1. d4 {[%emt 0:00:30]} d5 {[%emt 0:00:30]} 2. c4 {[%emt 0:00:30]} e6 {[%emt 0:00:30]} 3. Nf3 {[%emt 0:00:00]} c6 {[%emt 0:00:30]} 4. a3 {[%emt 0:01:00]} dxc4 {[%emt 0:01:30]} 5. Nc3 {[%emt 0:00:30]} Nd7 {[%emt 0:00:30]} 6. e4 {[%emt 0:00:30]} b5 {[%emt 0:01:30]} 7. Bg5 {[%emt 0:02:30]} Qb6 {[%emt 0:01:30]} 8. Be2 {[%emt 0:00:30]} Bb7 {[%emt 0:00:30]} 9. O-O {[%emt 0:00:30]} Ngf6 {[%emt 0:00:30]} 10. Be3 {[%emt 0:01:30]} Qc7 {[%emt 0:00:30]} 11. d5 {[%emt 0:02:30]} exd5 {[%emt 0:00:30]} 12. exd5 {[%emt 0:00:30]} Nxd5 {[%emt 0:00:30]} 13. Nxd5 {[%emt 0:00:30]} cxd5 {[%emt 0:00:00]} 14. Nd4 {[%emt 0:02:30]} a6 {[%emt 0:01:00]} 15. Bf3 {[%emt 0:00:30]} Bc5 {[%emt 0:00:30]} 16. Nf5 {[%emt 0:01:30]} O-O {[%emt 0:03:30]} 17. Re1 {[%emt 0:03:30]} Nf6 {[%emt 0:00:30]} 18. Bd4 {[%emt 0:00:30]} Bxd4 {[%emt 0:00:30]} 19. Qxd4 {[%emt 0:00:30]} Rfe8 {[%emt 0:01:30]} 20. g4 {[%emt 0:01:30]} Qd7 {[%emt 0:01:30]} 21. Nxg7 {[%emt 0:01:30]} Kxg7 {[%emt 0:00:30]} 22. g5 {[%emt 0:00:00]} Qf5 {[%emt 0:00:30]} 23. gxf6+ {[%emt 0:05:00]} Qxf6 {[%emt 0:00:30]} 24. Qxf6+ {[%emt 0:00:30]} Kxf6 {[%emt 0:00:00]} 25. Rad1 {[%emt 0:00:30]} Re5 {[%emt 0:01:00]} 26. Rf1 {[%emt 0:07:30]} Rg8+ {[%emt 0:00:30]} 27. Kh1 {[%emt 0:00:30]} Rf5 {[%emt 0:01:30]} 28. Bg2 {[%emt 0:00:30]} h5 {[%emt 0:00:30]} 29. f4 {[%emt 0:03:30]} h4 {[%emt 0:02:30]} 30. Bh3 {[%emt 0:03:30]} d4+ {[%emt 0:00:00]} 0-1

[Event "TUR-ch Veterans 2020"]
[Site "Antalya-Belek"]
[Date "2020.01.19"]
[Round "1"]
[White "Ucar, Mehmet Ali"]
[Black "Tofan, Ibrahim"]
[Result "0-1"]
[ECO "C01"]
[WhiteElo "1237"]
[BlackElo "2082"]
[Annotator "NA"]
[PlyCount "38"]
[EventDate "2020.01.19"]
[EventCountry "TUR"]
[SourceTitle "playchess.com"]
[Source "ChessBase"]
[SourceQuality "1"]
[TimeControl "5400+30"]

1. e4 {[%emt 0:01:30]} e6 {[%emt 0:00:30]} 2. Nf3 {[%emt 0:00:30]} d5 {[%emt 0:00:30]} 3. exd5 {[%emt 0:00:30]} exd5 {[%emt 0:00:30]} 4. d4 {[%emt 0:00:30]} Bd6 {[%emt 0:00:00]} 5. c4 {[%emt 0:00:30]} Nf6 {[%emt 0:00:00]} 6. Bg5 {[%emt 0:00:30]} O-O {[%emt 0:03:30]} 7. c5 {[%emt 0:00:30]} Be7 {[%emt 0:00:30]} 8. Be2 {[%emt 0:02:30]} b6 {[%emt 0:00:30]} 9. b4 {[%emt 0:01:30]} a5 {[%emt 0:00:30]} 10. Ne5 {[%emt 0:02:30]} axb4 {[%emt 0:00:30]} 11. c6 {[%emt 0:00:00]} Ne4 {[%emt 0:01:30]} 12. Bxe7 {[%emt 0:00:00]} Qxe7 {[%emt 0:00:30]} 13. O-O {[%emt 0:01:30]} f6 {[%emt 0:00:00]} 14. Nd7 {[%emt 0:00:30]} Nxd7 {[%emt 0:00:00]} 15. cxd7 {[%emt 0:00:00]} Bxd7 {[%emt 0:01:30]} 16. f3 {[%emt 0:00:00]} Ba4 {[%emt 0:01:30]} 17. Qd3 {[%emt 0:00:30]} Nd6 {[%emt 0:00:00]} 18. Nd2 {[%emt 0:01:30]} Bb5 {[%emt 0:00:00]} 19. Qc2 {[%emt 0:00:30]} Qxe2 {[%emt 0:01:30]} 0-1

[Event "TUR-ch Veterans 2020"]
[Site "Antalya-Belek"]
[Date "2020.01.20"]
[Round "2"]
[White "Kocak, Sabri"]
[Black "Topaloglu, Hayati"]
[Result "1-0"]
[ECO "C11"]
[WhiteElo "2086"]
[BlackElo "1750"]
[Annotator "NA"]
[PlyCount "119"]
[EventDate "2020.01.19"]
[EventCountry "TUR"]
[SourceTitle "playchess.com"]
[Source "ChessBase"]
[SourceQuality "1"]
[TimeControl "5400+30"]

{[%evp 30,119,272,32767,32767,158,32767,160,32767,32767,32767,32767,30,10,32767,0,32767,66,58,32767,32767,69,71,22,42,37,32,15,12,10,46,10,15,14,21,32767,16,25,31,16,32767,10,7,6,40,0,32767,32767,32767,106,112,95,114,103,104,116,120,95,149,119,32767,32767,83,32767,82,32767,32767,54,603,32767,12837,1929,32767,32767,32767,32767,32767,12845,29940,29977,32767,32767,32767,32767,32767,32767,32767,32767,32767,29984,29984,29985]} 1. e4 {[%emt 0:00:30]} e6 {[%emt 0:00:30]} 2. d4 {[%emt 0:00:00]} d5 {[%emt 0:00:30]} 3. Nc3 {[%emt 0:00:00]} Nf6 {[%emt 0:00:30]} 4. e5 {[%emt 0:00:30]} Nfd7 {[%emt 0:00:00]} 5. f4 {[%emt 0:00:30]} c5 {[%emt 0:02:00]} 6. Nf3 {[%emt 0:01:30]} Nc6 {[%emt 0:01:30]} 7. Be3 {[%emt 0:00:30]} cxd4 {[%emt 0:01:30]} 8. Nxd4 {[%emt 0:00:30]} Nxd4 {[%emt 0:01:30]} 9. Bxd4 {[%emt 0:00:00]} a6 {[%emt 0:02:30]} 10. Qd2 {[%emt 0:06:00]} b5 {[%emt 0:04:30] C11: French: Classical System: 4 e5 and 4 Bg5 dxe4} 11. a3 {[%emt 0:02:30]} Nb6 $146 {[%emt 0:03:30]} ({Predecessor:} 11... Nb8 12. Bd3 Nc6 13. Bf2 Bd7 14. O-O Be7 15. Ne2 b4 16. a4 Na5 17. f5 exf5 {½-½ (26) Kramnik,V (2777)-Bischoff,K (2561) Brissago 2004}) 12. Bd3 {[%emt 0:08:30]} Qc7 {[%emt 0:01:30]} 13. Qf2 {[%emt 0:00:30]} Nd7 {[%emt 0:01:30]} 14. b4 {[%emt 0:03:30]} Rb8 {[%emt 0:03:30]} 15. O-O {[%emt 0:03:30]} g6 $2 {[%emt 0:02:30]} (15... Nb6 $16) 16. g4 {[%emt 0:13:30]} Bg7 {[%emt 0:01:30]} 17. Rae1 {[%emt 0:02:30]} O-O {[%emt 0:01:30]} 18. Qg3 {[%emt 0:07:30]} f6 {[%emt 0:01:30]} 19. exf6 {[%emt 0:19:30]} Bxf6 {[%emt 0:01:30]} 20. Qe3 {[%emt 0:04:30]} Bxd4 {[%emt 0:00:30]} 21. Qxd4 {[%emt 0:00:00]} Qb6 {[%emt 0:00:30]} 22. Ne2 {[%emt 0:02:00]} Nf6 {[%emt 0:00:30]} 23. h3 {[%emt 0:00:30]} Bd7 {[%emt 0:00:30]} 24. Qxb6 {[%emt 0:05:24]} Rxb6 {[%emt 0:00:30]} 25. Nd4 {[%emt 0:00:06]} Kf7 {[%emt 0:02:30]} 26. f5 {[%emt 0:00:57]} (26. Re5 $16) 26... gxf5 {[%emt 0:02:30]} 27. gxf5 {[%emt 0:00:14]} exf5 {[%emt 0:00:30]} 28. Nxf5 {[%emt 0:00:55]} Re8 {[%emt 0:06:30]} 29. Rxe8 {[%emt 0:01:57]} Bxe8 {[%emt 0:03:30]} 30. Ne3 {[%emt 0:03:32]} Kg7 {[%emt 0:00:30]} 31. Rf5 {[%emt 0:03:04]} Bf7 {[%emt 0:03:30]} 32. Rg5+ {[%emt 0:02:49]} Kf8 {[%emt 0:02:30]} 33. Kg2 {[%emt 0:02:26]} Be6 {[%emt 0:02:30]} 34. Nf5 {[%emt 0:01:33]} Ne4 {[%emt 0:02:30]} 35. Bxe4 {[%emt 0:01:47]} dxe4 {[%emt 0:00:00]} 36. Nd4 {[%emt 0:00:35]} Kf7 {[%emt 0:01:00]} 37. h4 {[%emt 0:00:29]} Kf6 {[%emt 0:00:30]} 38. Kf2 {[%emt 0:00:38]} h6 {[%emt 0:01:30]} 39. Rh5 {[%emt 0:00:09]} Kg6 {[%emt 0:01:30]} 40. Re5 {[%emt 0:00:21]} Kf6 {[%emt 0:00:30]} 41. Rxe4 {[%emt 0:00:16]} ({Don't blunder} 41. Rxe6+ $2 Rxe6 42. Ke3 (42. Nxe6 $2 Kxe6 43. Ke2 Ke5 $19) 42... Re5 $19) 41... Bd5 {[%emt 0:01:30]} 42. Rf4+ {[%emt 0:02:14]} Ke5 {[%emt 0:00:30]} 43. Ke3 {[%emt 0:00:07]} Rg6 {[%emt 0:00:30]} 44. Rf5+ {[%emt 0:00:23]} Kd6 {[%emt 0:00:30]} 45. Ne2 {[%emt 0:00:35]} Re6+ {[%emt 0:00:30]} 46. Kd2 {[%emt 0:00:40]} Be4 {[%emt 0:00:30]} 47. Rf8 {[%emt 0:02:18]} Ke5 {[%emt 0:00:30]} 48. Rd8 {[%emt 0:00:49]} ({White should play} 48. Ke3 $16) 48... Bd5 $2 {[%emt 0:01:30]} (48... Rg6 $14) 49. Rxd5+ {[%emt 0:00:41]} Kxd5 {[%emt 0:00:30]} 50. Nf4+ {[%emt 0:00:02] Double Attack} Ke5 {[%emt 0:00:30]} 51. Nxe6 {[%emt 0:00:30]} Kxe6 {[%emt 0:00:00]} 52. Kd3 {[%emt 0:00:17]} Kd5 {[%emt 0:00:00]} 53. h5 {[%emt 0:00:00]} Ke5 {[%emt 0:00:00]} 54. c4 {[%emt 0:00:00]} bxc4+ {[%emt 0:01:00]} 55. Kxc4 {[%emt 0:00:00]} Kd6 {[%emt 0:00:30]} 56. a4 {[%emt 0:00:58]} Kc6 {[%emt 0:00:00]} 57. Kd4 {[%emt 0:00:22]} Kd6 {[%emt 0:01:00]} 58. Ke4 {[%emt 0:00:29]} Ke6 {[%emt 0:00:30]} 59. b5 {[%emt 0:00:30]} axb5 {[%emt 0:01:30]} 60. axb5 {[%emt 0:00:03]} 1-0

[Event "TUR-ch Veterans 2020"]
[Site "Antalya-Belek"]
[Date "2020.01.20"]
[Round "2"]
[White "Tofan, Ibrahim"]
[Black "Onem, Cem"]
[Result "1-0"]
[ECO "A20"]
[WhiteElo "2082"]
[BlackElo "1805"]
[Annotator "NA"]
[PlyCount "107"]
[EventDate "2020.01.19"]
[EventCountry "TUR"]
[SourceTitle "playchess.com"]
[Source "ChessBase"]
[SourceQuality "1"]
[TimeControl "5400+30"]

1. c4 {[%emt 0:00:30]} e5 {[%emt 0:00:30]} 2. g3 {[%emt 0:00:30]} Nf6 {[%emt 0:00:00]} 3. Bg2 {[%emt 0:00:30]} c6 {[%emt 0:00:00]} 4. d4 {[%emt 0:02:30]} e4 {[%emt 0:07:30]} 5. Nc3 {[%emt 0:01:30]} (5. Bg5 d5 6. Bxf6 Bb4+ 7. Nc3 Qxf6 8. e3 Bxc3+ 9. bxc3 Qe7 10. cxd5 cxd5 11. Ne2 Be6 12. O-O Nd7 {½-½ (39) So,W (2760)-Giri,A (2776) Bucharest 2019}) 5... d5 {[%emt 0:06:30]} 6. Bg5 {[%emt 0:02:30] A20: English Opening: 1...e5} Bb4 {[%emt 0:01:30]} 7. Qb3 {[%emt 0:03:30]} Bxc3+ {[%emt 0:04:30]} 8. bxc3 {[%emt 0:00:30]} Nbd7 {[%emt 0:00:30]} 9. e3 {[%emt 0:00:30]} h6 {[%emt 0:00:00]} 10. Bxf6 {[%emt 0:00:30]} Nxf6 {[%emt 0:00:00]} 11. Ne2 {[%emt 0:02:30]} O-O $146 {[%emt 0:00:30]} ({Predecessor:} 11... Qc7 12. h3 h5 {1-0 (43) Markensten,M (1647)-Nielsen,J (1630) Runavik 2017}) 12. O-O {[%emt 0:04:30]} dxc4 {[%emt 0:09:30]} 13. Qxc4 {[%emt 0:00:30]} Be6 {[%emt 0:00:00]} 14. Qb4 {[%emt 0:03:30]} Bg4 {[%emt 0:02:00]} 15. Rfe1 {[%emt 0:03:30]} Qd7 {[%emt 0:05:30]} 16. c4 {[%emt 0:01:30]} Rab8 {[%emt 0:03:30]} 17. Nc3 {[%emt 0:04:30]} Bf3 {[%emt 0:04:30]} 18. Qb1 {[%emt 0:03:30]} Bxg2 {[%emt 0:13:30]} 19. Kxg2 {[%emt 0:00:30]} Qf5 {[%emt 0:00:00]} 20. a4 {[%emt 0:01:30]} h5 {[%emt 0:02:00]} 21. Qd1 {[%emt 0:03:30]} Rfe8 {[%emt 0:02:30]} 22. Ra2 {[%emt 0:03:30]} g6 {[%emt 0:03:30]} 23. Rd2 {[%emt 0:03:30]} h4 {[%emt 0:06:30]} 24. h3 {[%emt 0:06:30]} Kg7 {[%emt 0:01:30]} 25. g4 {[%emt 0:01:30]} Qa5 {[%emt 0:00:30]} 26. Qa1 {[%emt 0:00:30]} Kg8 {[%emt 0:05:30]} 27. d5 {[%emt 0:04:30]} Rbd8 {[%emt 0:07:00]} 28. Red1 {[%emt 0:01:30]} Rd6 {[%emt 0:02:19]} (28... Nh7 $16) 29. Qa3 {[%emt 0:01:30]} (29. dxc6 $18 Rxc6 30. Nb5) 29... Rd7 {[%emt 0:01:39]} 30. Rd4 {[%emt 0:16:30]} cxd5 {[%emt 0:00:42]} 31. Nxd5 {[%emt 0:00:30]} Nxd5 {[%emt 0:00:21]} 32. Rxd5 {[%emt 0:01:30]} ({Resist} 32. cxd5 $6 f5 $14) 32... Rxd5 {[%emt 0:00:13]} 33. Rxd5 {[%emt 0:00:00]} Qc7 {[%emt 0:01:38]} (33... Qa6 $1 $14) 34. Qb4 {[%emt 0:01:00]} b6 {[%emt 0:01:06]} 35. c5 {[%emt 0:01:30]} bxc5 {[%emt 0:00:16]} 36. Rxc5 {[%emt 0:00:30]} Qd6 {[%emt 0:00:40]} 37. Qc4 {[%emt 0:01:30]} (37. Qc3 $1 $14) 37... Qd1 {[%emt 0:00:45]} 38. Rc8 {[%emt 0:04:01]} Qf3+ {[%emt 0:00:39]} 39. Kg1 {[%emt 0:00:00]} Rxc8 {[%emt 0:00:17]} 40. Qxc8+ {[%emt 0:00:07]} Kg7 {[%emt 0:00:05]} 41. Qc3+ {[%emt 0:01:22]} Kg8 {[%emt 0:00:18]} 42. Qd4 {[%emt 0:01:44]} a5 {[%emt 0:04:33]} (42... a6 $11) 43. Qd8+ {[%emt 0:00:48]} Kg7 {[%emt 0:00:07]} 44. Qxa5 {[%emt 0:00:27]} f5 $2 {[%emt 0:03:24]} (44... Qd1+ {is more resistant.} 45. Kh2 Qe2 46. Qe5+ Kg8) 45. Qc7+ {[%emt 0:00:49]} Kg8 {[%emt 0:00:38]} 46. Qd8+ {[%emt 0:02:51]} Kf7 {[%emt 0:00:11]} 47. Qd5+ {[%emt 0:00:24]} Kg7 {[%emt 0:00:26]} 48. Qe5+ {[%emt 0:00:29]} Kf7 {[%emt 0:00:13]} 49. g5 $18 {[%emt 0:01:53]} Qxh3 {[%emt 0:02:53]} 50. Qf6+ {[%emt 0:00:40]} Ke8 {[%emt 0:00:04]} 51. Qxg6+ {[%emt 0:00:00]} Kd7 {[%emt 0:00:07]} 52. Qh5 {[%emt 0:00:00]} f4 {[%emt 0:01:20]} 53. Qf7+ {[%emt 0:00:20]} Kc6 {[%emt 0:00:39]} 54. Qxf4 {[%emt 0:00:15]} 1-0

[Event "TUR-ch Veterans 2020"]
[Site "Antalya-Belek"]
[Date "2020.01.20"]
[Round "2"]
[White "Buker, Muhittin"]
[Black "Ozakay, Ozer"]
[Result "1-0"]
[ECO "D37"]
[WhiteElo "2008"]
[BlackElo "1673"]
[Annotator "NA"]
[PlyCount "67"]
[EventDate "2020.01.19"]
[EventCountry "TUR"]
[SourceTitle "playchess.com"]
[Source "ChessBase"]
[SourceQuality "1"]
[TimeControl "5400+30"]

1. d4 {[%emt 0:00:30]} Nf6 {[%emt 0:00:30]} 2. c4 {[%emt 0:00:30]} e6 {[%emt 0:00:30]} 3. Nf3 {[%emt 0:00:00]} d5 {[%emt 0:01:30]} 4. Nc3 {[%emt 0:00:00]} Be7 {[%emt 0:04:30]} 5. Bf4 {[%emt 0:00:00]} c6 {[%emt 0:01:30]} 6. e3 {[%emt 0:00:00]} O-O {[%emt 0:01:30]} 7. Bd3 {[%emt 0:00:30]} Nbd7 {[%emt 0:01:30]} 8. O-O {[%emt 0:00:00]} dxc4 {[%emt 0:02:30]} 9. Bxc4 {[%emt 0:00:00]} Nd5 {[%emt 0:00:30] D37: Queen's Gambit Declined: 5 Bf4} 10. Bg3 {[%emt 0:00:30]} N7b6 {[%emt 0:02:30]} (10... N7f6 11. Bd3 Qa5 12. Ne5 c5 13. Nxd5 exd5 14. dxc5 Qxc5 15. Qb3 Nh5 16. Rac1 Qa5 17. Nf3 Nxg3 18. hxg3 {½-½ (46) Jankovic,A (2557)-Vajda,L (2566) Hungary 2016}) 11. Bb3 $146 {[%emt 0:01:30]} ({Predecessor:} 11. Bd3 g6 12. Ne4 Nf6 13. Nxf6+ Bxf6 14. Rc1 Be7 15. e4 f5 16. Qd2 g5 17. exf5 exf5 {1-0 (48) Barbot,P (2445)-Gomez Jurado,L (2272) La Massana 2015}) 11... Bd6 {[%emt 0:06:30]} 12. e4 {[%emt 0:00:30]} Nxc3 {[%emt 0:03:30]} 13. bxc3 {[%emt 0:00:30]} Bxg3 {[%emt 0:02:30]} 14. hxg3 {[%emt 0:00:00]} Qe7 {[%emt 0:08:30]} 15. Qd3 {[%emt 0:06:00]} Rd8 {[%emt 0:01:30]} 16. c4 {[%emt 0:04:30]} Nd7 {[%emt 0:00:30]} 17. Bc2 {[%emt 0:01:30]} e5 {[%emt 0:06:30]} 18. Rfd1 {[%emt 0:04:30]} Nc5 {[%emt 0:02:30]} 19. Qa3 {[%emt 0:00:30]} exd4 {[%emt 0:01:30]} 20. Nxd4 {[%emt 0:00:00]} Re8 {[%emt 0:04:30]} 21. Rd2 {[%emt 0:08:00]} Be6 {[%emt 0:04:30]} 22. Rad1 {[%emt 0:02:30]} g6 {[%emt 0:06:30]} 23. Qc3 {[%emt 0:06:30]} Rad8 {[%emt 0:05:30]} 24. f3 {[%emt 0:03:30]} h5 {[%emt 0:03:30]} 25. Bb3 {[%emt 0:00:30]} Qg5 {[%emt 0:01:30]} 26. Bc2 {[%emt 0:05:30]} h4 {[%emt 0:04:30]} 27. gxh4 {[%emt 0:04:30]} Qxh4 {[%emt 0:01:30]} 28. Qa5 {[%emt 0:00:30]} Qe7 {[%emt 0:01:52]} 29. Nxc6 {[%emt 0:00:30]} bxc6 {[%emt 0:04:12]} 30. Rxd8 {[%emt 0:00:30]} Rxd8 {[%emt 0:03:32]} 31. Qxd8+ {[%emt 0:02:30]} Qxd8 {[%emt 0:00:09]} 32. Rxd8+ {[%emt 0:00:30]} Kg7 {[%emt 0:00:03]} 33. Bb3 {[%emt 0:00:00]} Kf6 {[%emt 0:02:16]} 34. Rd6 $18 {[%emt 0:00:00]} 1-0